Cogmind - Beta 13 @@@ ROGUE MODE // 2024.06.26 @ 22:33:12 Player: Jammed Result: Destroyed by Y-54 Guardian with Gatling Laser Performance ------------- Evolutions (3) 1500 Regions Visited (11) 2200 Robots Destroyed (143) 715 Value Destroyed (5221) 5221 Prototype IDs (6) 120 Alien Tech Used (0) 0 Bonus (745) 745 TOTAL SCORE: 10501 Bonus ------- High Alert Combat Kills 239 Follower Combat Kills 106 Entered Garrisons 400 Cogmind --------- Core Integrity 0/700 Matter 191/300 Energy 703/715 System Corruption 10% Temperature Cool (4) Movement Immobile (Siege) Ox1 Location -7/Lower Caves Parts ------- > --- POWER (1) -------- Neutrino Core > --- PROPULSION (2) --- Improved Heavy Treads > --- UTILITY (8) ------ Advanced Heat Sink Huge Storage Unit Large Battery Compact Battery Experimental Optical Array Seismic Detector Improved Medium Armor Plating Shield Generator > --- WEAPON (2) ------- Improved Heavy Machine Gun (fused) Improved Heavy Machine Gun (fused) > --- INVENTORY (25) --- Deuterium Engine Reinforced Deuterium Engine Improved Heavy Treads Improved Heavy Treads Improved Heavy Treads Advanced Heat Sink Advanced Heat Sink Advanced Cooling System Armor Integrity Analyzer Particle Charger Improved Utility Shielding Dynamic Insulation System Heavy Particle Cannon Plasma Cannon Long-range Phase Cannon Long-range Phase Cannon Neutron Missile Launcher Power Maul Peak State ------------ > --- POWER ------------ Neutrino Core > --- PROPULSION ------- Improved Heavy Treads > --- UTILITY ---------- Advanced Heat Sink Improved Cooling System Huge Storage Unit Experimental Optical Array Hardened Heavy Armor Plating Improved Medium Armor Plating Shield Generator > --- WEAPON ----------- Long-range Phase Cannon Neutron Missile Launcher > --- INVENTORY -------- Deuterium Engine Reinforced Deuterium Engine Improved Heavy Treads Improved Heavy Treads Improved Heavy Treads Advanced Heat Sink Advanced Heat Sink Advanced Cooling System Seismic Detector Armor Integrity Analyzer Particle Charger Improved Utility Shielding Improved Medium Armor Plating Dynamic Insulation System Heavy Particle Cannon Plasma Cannon Long-range Phase Cannon Improved Heavy Machine Gun Improved Heavy Machine Gun Power Maul [Rating: 79] Favorites ----------- Power Neutrino Core Engine Heavy Ion Engine Power Core Neutrino Core Propulsion Light Treads Treads Light Treads Leg Aluminum Leg Wheel Compact Wheel Utility Seismic Detector Device Seismic Detector Storage Huge Storage Unit Processor Experimental Optical Array Protection Improved Medium Armor Plating Weapon Plasma Cannon Energy Gun Particle Gun Energy Cannon Plasma Cannon Ballistic Gun Heavy Assault Rifle Launcher Neutron Missile Launcher Special Weapon Mining Laser Impact Weapon Heavy Hammer Build | -11 -10 -10 -10 -9 -8 -7 -7 -7 -7 -7 -7 ------- Run | Yrd Mat Min Exi Min Mat Fac Gar Fac Gar Fac Low Slots Evolved 6 | . . . . . 4 2 . . . . . Power . | . . . . . . . . . . . . Propulsion . | . . . . . . . . . . . . Utility 6 | . . . . . 4 2 . . . . . Weapon . | . . . . . . . . . . . . Parts Attached 153 | 2 16 1 . 8 53 42 10 8 12 1 . Power 15 | . 3 1 . 1 5 4 1 . . . . Engine 13 | . 3 1 . 1 4 4 . . . . . Core 2 | . . . . . 1 . 1 . . . . Reactor . | . . . . . . . . . . . . Propulsion 29 | . 5 . . 2 11 6 2 1 2 . . Treads 22 | . 2 . . . 9 6 2 1 2 . . Leg . | . . . . . . . . . . . . Wheel 7 | . 3 . . 2 2 . . . . . . Hover . | . . . . . . . . . . . . Flight . | . . . . . . . . . . . . Utility 53 | 1 1 . . 2 20 15 4 3 6 1 . Device 20 | 1 . . . . 5 6 3 2 2 1 . Storage 5 | . 1 . . . 1 1 . . 2 . . Processor 7 | . . . . . 4 3 . . . . . Hackware . | . . . . . . . . . . . . Protection 21 | . . . . 2 10 5 1 1 2 . . Artifact . | . . . . . . . . . . . . Weapon 56 | 1 7 . . 3 17 17 3 4 4 . . Energy Gun 6 | . 1 . . 1 4 . . . . . . Energy Cannon 11 | . . . . . . 5 3 2 1 . . Ballistic Gun 24 | 1 3 . . . 7 11 . . 2 . . Ballistic Cannon . | . . . . . . . . . . . . Launcher 5 | . . . . 1 1 1 . 1 1 . . Special Weapon 3 | . 3 . . . . . . . . . . Impact Weapon 7 | . . . . 1 5 . . 1 . . . Slashing Weapon . | . . . . . . . . . . . . Piercing Weapon . | . . . . . . . . . . . . Special Melee Weapon . | . . . . . . . . . . . . Unidentified Prototypes 6 | . . . . . 1 5 . . . . . Parts Lost 43 | . . . . 5 17 10 6 . 5 . . Power 4 | . . . . 1 2 1 . . . . . Propulsion 10 | . . . . 2 4 2 2 . . . . Utility 23 | . . . . 1 9 5 3 . 5 . . Weapon 6 | . . . . 1 2 2 1 . . . . Highest Loss Streak 4 | . . . . 3 4 4 1 . 4 . . To Critical Strikes . | . . . . . . . . . . . . Average Slot Usage (%) 94 | . 99 100 100 88 90 96 90 98 90 91 . Engine 6 | . 14 14 14 14 8 6 6 . . . . Core 1 | . . . . . . . . 7 7 7 . Treads 13 | . 12 14 14 10 11 14 14 15 7 7 . Wheel 3 | . 13 14 14 17 6 . . . . . . Device 21 | . 14 14 14 . 12 21 27 36 30 22 . Storage 9 | . 14 14 14 14 9 6 7 7 12 23 . Processor 9 | . . . . . 10 21 7 7 7 7 . Protection 7 | . . . . 13 14 7 7 7 7 7 . Energy Gun 3 | . 14 14 14 13 3 . . . . . . Energy Cannon 4 | . . . . . . . 14 14 7 . . Ballistic Gun 8 | . 10 14 14 4 13 14 . . 7 15 . Naked Turns . | . . . . . . . . . . . . Heaviest Build 137 | 15 51 53 53 55 110 135 137 131 121 117 . Greatest Support 75 | 20 20 10 10 32 40 40 40 40 75 75 . Greatest Overweight (x) 6 | . 5 5 5 5 6 3 3 3 3 1 . Average Overweight (x) 3 | . 4 5 5 2 4 2 3 2 1 1 . Largest Inventory Capacity 25 | 8 20 20 20 20 25 25 25 25 25 25 25 Average Capacity 23 | 8 19 20 20 20 24 24 25 25 25 25 25 Most Carried 25 | 6 13 20 20 20 25 25 24 25 25 22 21 Average Carried 21 | 5 10 17 19 18 23 24 20 23 23 21 21 Final Capacity 25 | 8 20 20 20 20 25 25 25 25 25 25 25 Final Carried 25 | 6 13 20 20 17 25 24 22 25 22 21 21 Class Distribution -------------------- 54% | Scavenger-Mutant 42% | Mutant Dominant Class ---------------- Mutant | -10/Materials Mutant | -10/Mines Mutant | -10/Exiles Mutant | -9/Mines Scavenger-Mutant | -8/Materials Scavenger-Mutant | -7/Factory Scavenger-Mutant | -7/Garrison Mutant | -7/Factory Mutant | -7/Garrison Scavenger-Mutant | -7/Factory Scavenger-Mutant | -7/Lower Caves Resources | -11 -10 -10 -10 -9 -8 -7 -7 -7 -7 -7 -7 ----------- Run | Yrd Mat Min Exi Min Mat Fac Gar Fac Gar Fac Low Matter Collected 3817 | 292 301 98 . 81 1152 828 421 204 440 . . Remotely . | . . . . . . . . . . . . Salvage Created 6643 | 239 570 174 . 6 2127 1200 1036 279 1012 . . Parts 321 | 20 33 16 . . 99 77 29 22 25 . . Haulers Intercepted 7 | . 2 . . . 4 . . 1 . . . Recyclers Shooed 7 | 1 1 1 . . 2 2 . . . . . Parts Field Recycled . | . . . . . . . . . . . . Retrieved Matter . | . . . . . . . . . . . . Parts Self-Destructed . | . . . . . . . . . . . . Prevented . | . . . . . . . . . . . . Kills | -11 -10 -10 -10 -9 -8 -7 -7 -7 -7 -7 -7 ------- Run | Yrd Mat Min Exi Min Mat Fac Gar Fac Gar Fac Low Combat Hostiles Destroyed 110 | . 8 5 . 4 33 22 21 7 10 . . Melee 1 | . . . . . 1 . . . . . . Guns 73 | . 8 5 . 1 32 22 . . 5 . . Cannons 19 | . . . . . . . 16 3 . . . AOE 11 | . . . . 3 . . . 3 5 . . Classes Destroyed 15 | 2 4 1 . 1 2 4 . 1 . . . Builder 1 | . . . . . . 1 . . . . . Tunneler 11 | 9 1 1 . . . . . . . . . Hauler 7 | . 2 . . . 4 . . 1 . . . Recycler 8 | 1 2 . . . 4 1 . . . . . Operator 1 | . . . . . . . . 1 . . . Watcher 9 | . 3 . . . 5 1 . . . . . Swarmer 17 | . 4 3 . . 4 . 3 3 . . . Grunt 46 | . 4 . . . 18 5 15 . 4 . . Brawler 2 | . . . . . 1 . 1 . . . . Duelist 2 | . . . . . . 1 . . 1 . . Sentry 17 | . . 2 . . 6 2 2 . 5 . . Specialist 12 | . . . . . 4 8 . . . . . Programmer 8 | . . . . . . 4 . 4 . . . Heavy 2 | . . . . . . 2 . . . . . Assembled 4 | . . . . 4 . . . . . . . Best Kill Streak 7 | 4 3 3 . 3 5 5 4 3 7 . . Combat Bots Only 7 | . 3 3 . 3 4 4 4 3 7 . . Max Kills in Single Turn 3 | 1 1 1 . 3 2 1 1 3 3 . . Gunslinging 1 | . . . . . 1 . . . . . . Exploded 3 | . . . . 3 . . . 3 3 . . Melee 1 | . . . . . 1 . . . . . . Uniques/NPCs Destroyed . | . . . . . . . . . . . . Combat | -11 -10 -10 -10 -9 -8 -7 -7 -7 -7 -7 -7 -------- Run | Yrd Mat Min Exi Min Mat Fac Gar Fac Gar Fac Low Hostile Shots Fired 1024 | . 35 23 . 21 259 223 193 29 238 . 3 Missed 318 | . 9 5 . 1 82 62 65 11 83 . . Damage Taken 9097 | . 333 175 . 491 2591 2393 1803 197 1067 40 7 Core 1361 | . 106 20 . 79 450 372 215 43 69 . 7 Absorbed by Shields 264 | . . . . . . . . 73 174 14 3 Reduced by Siege Mode 97 | . . . . . . . . . 97 . . Ignored by Resistances 396 | . . . . . 39 357 . . . . . Regen/Repaired (Parts) 522 | . 119 . . . 17 386 . . . . . Core Remaining (%) 45 | 100 . . . 18 18 . . . . . . Volleys Fired 489 | 24 45 18 . 9 144 79 99 16 48 6 1 Largest 2 | 2 2 2 . 2 2 2 2 2 2 2 2 Hottest 160 | 70 100 85 . 85 81 105 160 155 155 30 30 Shots Fired 907 | 48 86 30 . 15 266 153 171 36 90 10 2 Gun 624 | 48 82 30 . 13 265 148 . . 26 10 2 Cannon 269 | . . . . . . 5 171 35 58 . . Launcher 10 | . . . . 2 1 . . 1 6 . . Special 4 | . 4 . . . . . . . . . . Kinetic 476 | 24 41 18 . 6 201 148 . . 26 10 2 Thermal 421 | 24 45 12 . 7 64 5 171 35 58 . . Explosive 10 | . . . . 2 1 . . 1 6 . . Electromagnetic . | . . . . . . . . . . . . Robot Hit Streak 47 | 12 6 12 . 3 36 20 16 5 47 . 2 Robot Miss Streak 7 | 2 5 3 . 2 4 7 2 3 2 1 . Penetration Max 1 | . . . . . . 1 . . . . . Secondary Targets 6 | . . . . . 4 2 . . . . . Max Gunslinging Chain 1 | . . . . . 1 1 . . . . . Shots Hit Robots 629 | 33 47 20 . 10 219 100 104 18 76 . 2 Core Hits 295 | 11 24 8 . 8 95 58 35 9 46 . 1 Critical Kills 5 | . . . . . 3 . 1 1 . . . Critical Parts Destroyed 4 | . 1 . . . 3 . . . . . . Critical Strikes 13 | 1 2 . . . 8 . 1 1 . . . Burn 4 | 1 1 . . . 2 . . . . . . Meltdown 2 | . . . . . . . 1 1 . . . Destroy 7 | . 1 . . . 6 . . . . . . Melee Attacks 15 | . . . . 1 14 . . . . . . Impact 15 | . . . . 1 14 . . . . . . Slashing . | . . . . . . . . . . . . Piercing . | . . . . . . . . . . . . Sneak Attacks . | . . . . . . . . . . . . Combat Hostiles . | . . . . . . . . . . . . Follow-up Attacks . | . . . . . . . . . . . . Damage Inflicted 14078 | 411 664 278 . 346 3654 2167 2828 758 2928 . 44 Guns 7719 | 411 664 278 . 114 3528 2165 . . 515 . 44 Cannons 4671 | . . . . . . . 2828 490 1353 . . Explosions 1560 | . . . . 232 . . . 268 1060 . . Melee 120 | . . . . . 120 . . . . . . Ramming 8 | . . . . . 6 2 . . . . . Kinetic 6256 | 186 268 170 . 32 2876 2165 . . 515 . 44 Thermal 6183 | 225 396 108 . 82 652 . 2828 490 1402 . . Explosive 1511 | . . . . 232 . . . 268 1011 . . Electromagnetic . | . . . . . . . . . . . . Impact 120 | . . . . . 120 . . . . . . Slashing . | . . . . . . . . . . . . Piercing . | . . . . . . . . . . . . Highest Corruption 10 | . 3 3 3 10 1 4 7 10 10 10 10 Average Corruption 5 | . 2 3 3 8 1 2 6 8 10 10 10 Corruption Purged . | . . . . . . . . . . . . Corruption Blocked 15 | . . . . . . 15 . . . . . Effects 251 | . 9 9 5 9 4 31 57 73 36 18 . Message Errors 59 | . 2 2 3 3 2 3 10 26 6 2 . Matter Fused 69 | . 4 3 1 2 . 9 18 16 10 6 . Heat Flow Errors 37 | . 1 3 . 3 1 8 5 11 3 2 . Energy Discharges 22 | . 1 . 1 1 . 2 11 4 2 . . Parts Rejected 4 | . . . . . . 2 1 . 1 . . Parts Fused 4 | . . 1 . . . . . 1 1 1 . Data Loss (minor) 24 | . 1 . . . . 4 6 5 7 1 . Data Loss (major) 12 | . . . . . . . 5 3 3 1 . Misfires 11 | . . . . . 1 1 . 6 2 1 . Alerts 3 | . . . . . . 1 . 1 . 1 . Weapon Failures 6 | . . . . . . 1 1 . 1 3 . Overload Shots . | . . . . . . . . . . . . Overflow Damage 70 | . . . . 23 . . 47 . . . . Projectiles 47 | . . . . . . . 47 . . . . Explosions 23 | . . . . 23 . . . . . . . Melee . | . . . . . . . . . . . . Knockbacks . | . . . . . . . . . . . . Impact . | . . . . . . . . . . . . Kinetic . | . . . . . . . . . . . . Secondary . | . . . . . . . . . . . . Self-Inflicted Damage 135 | . . . . 69 3 . . . 63 . . Shots 3 | . . . . 2 . . . . 1 . . Rammed 1 | . . . . . 1 . . . . . . Targets Rammed 2 | . . . . . 1 1 . . . . . Kicked . | . . . . . . . . . . . . Crushed 1 | . . . . . . 1 . . . . . Highest Temperature 396 | 81 204 282 . 190 198 241 396 224 182 257 . Average Temperature 76 | 32 58 110 . 78 68 116 104 91 69 128 . Received Heat Transfer 2757 | . 183 27 . 60 1098 306 777 . 302 . 4 Effects 3 | . . . . . . 3 . . . . . Interference 3 | . . . . . . 3 . . . . . Siege Activations 3 | . . . . . . . . . 3 . . Total Turns 58 | . . . . . . . . . 58 . . Longest Duration 28 | . . . . . . . . . 28 . . Robots Corrupted . | . . . . . . . . . . . . Combat Hostiles . | . . . . . . . . . . . . Parts Fried . | . . . . . . . . . . . . Impact Corruptions . | . . . . . . . . . . . . Robots Melted 6 | . . . . . . . 5 1 . . . Combat Hostiles 6 | . . . . . . . 5 1 . . . Parts Melted 28 | 1 1 . . . 1 . 14 8 3 . . Heat Transferred 12261 | 740 1073 259 . 185 1813 . 5072 720 2399 . . Parts Sabotaged . | . . . . . . . . . . . . Parts Stolen . | . . . . . . . . . . . . Parts Stripped . | . . . . . . . . . . . . Power Chain Reactions 1 | . . . . . . . . . 1 . . Alert | -11 -10 -10 -10 -9 -8 -7 -7 -7 -7 -7 -7 ------- Run | Yrd Mat Min Exi Min Mat Fac Gar Fac Gar Fac Low Peak Influence 990 | 50 196 142 . 15 326 305 990 519 502 376 . Initial 519 | . 32 12 . . . 112 210 519 116 263 . Average 220 | 26 44 27 . 1 161 100 609 276 286 271 . Maximum Alert Level 3 | . . . . . 1 1 3 2 2 1 . Low Security (%) 55 | 100 100 100 . 100 56 81 . 31 50 6 . Level 1 27 | . . . . . 43 18 24 51 1 93 . Level 2 10 | . . . . . . . 32 17 47 . . Level 3 6 | . . . . . . . 43 . . . . Level 4 . | . . . . . . . . . . . . Level 5 . | . . . . . . . . . . . . High Security . | . . . . . . . . . . . . Max Security . | . . . . . . . . . . . . Squads Dispatched 21 | . 3 . . . 5 10 . 3 . . . Investigation 6 | . 3 . . . 2 1 . . . . . Extermination 8 | . . . . . . 5 . 3 . . . Reinforcement 7 | . . . . . 3 4 . . . . . Assault . | . . . . . . . . . . . . Garrison . | . . . . . . . . . . . . Intercept . | . . . . . . . . . . . . Searches Triggered . | . . . . . . . . . . . . Construction Impeded . | . . . . . . . . . . . . Haulers Reinforced . | . . . . . . . . . . . . Active Scanning Responses . | . . . . . . . . . . . . Cargo Convoy Interrupts 1 | . . . . . . 1 . . . . . Stealth | -11 -10 -10 -10 -9 -8 -7 -7 -7 -7 -7 -7 --------- Run | Yrd Mat Min Exi Min Mat Fac Gar Fac Gar Fac Low Distress Signals 5 | . 1 . . . 3 1 . . . . . Communications Jammed 8 | . . . . . . 8 . . . . . Distress Signals . | . . . . . . . . . . . . Times Spotted 152 | . 11 5 . 6 51 31 24 9 13 1 1 Peak Tracking Total 7 | . 3 3 . 3 7 6 5 3 7 1 1 Tactical Retreats 10 | . . . . . 5 1 3 . 1 . . Traps | -11 -10 -10 -10 -9 -8 -7 -7 -7 -7 -7 -7 ------- Run | Yrd Mat Min Exi Min Mat Fac Gar Fac Gar Fac Low Traps Triggered 9 | . 2 . . . 1 . 3 . 2 1 . Indirectly . | . . . . . . . . . . . . Trap Hack Attempts . | . . . . . . . . . . . . Triggered . | . . . . . . . . . . . . Disarmed . | . . . . . . . . . . . . Reprogrammed . | . . . . . . . . . . . . Reused . | . . . . . . . . . . . . Traps Extracted . | . . . . . . . . . . . . Installed . | . . . . . . . . . . . . Triggered 2 | . . . . . . 2 . . . . . Machines | -11 -10 -10 -10 -9 -8 -7 -7 -7 -7 -7 -7 ---------- Run | Yrd Mat Min Exi Min Mat Fac Gar Fac Gar Fac Low Machines Disabled 9 | . . . . . . 1 . . 2 6 . Max in Single Turn 3 | . . . . . . 1 . . 1 3 . Machines Repaired . | . . . . . . . . . . . . Machines Dismantled . | . . . . . . . . . . . . Machines Sabotaged . | . . . . . . . . . . . . Overloaded Fab Kills . | . . . . . . . . . . . . Hacking | -11 -10 -10 -10 -9 -8 -7 -7 -7 -7 -7 -7 --------- Run | Yrd Mat Min Exi Min Mat Fac Gar Fac Gar Fac Low Machines Accessed 23 | . 6 . 1 . 6 7 1 1 . 1 . Terminals 16 | . 4 . . . 5 5 1 . . 1 . Fabricators . | . . . . . . . . . . . . Repair Stations 3 | . 1 . . . 1 1 . . . . . Recycling Units 1 | . 1 . . . . . . . . . . Scanalyzers . | . . . . . . . . . . . . Garrison Access 2 | . . . . . . 1 . 1 . . . Total Hacks 64 | . 16 . 4 . 18 19 1 2 . 4 . Successful 29 | . 9 . 4 . 9 5 . 1 . 1 . Failed 35 | . 7 . . . 9 14 1 1 . 3 . Catastrophic 8 | . 2 . . . 1 4 1 . . . . Database Lockouts . | . . . . . . . . . . . . Manual 30 | . 8 . . . 12 6 . . . 4 . Terminals 40 | . 9 . . . 13 13 1 . . 4 . Fabricators . | . . . . . . . . . . . . Repair Stations 13 | . 5 . . . 5 3 . . . . . Recycling Units 2 | . 2 . . . . . . . . . . Scanalyzers . | . . . . . . . . . . . . Garrison Access 5 | . . . . . . 3 . 2 . . . Terminal Hacks 11 | . 2 . 4 . 3 1 . . . 1 . Record 4 | . . . 4 . . . . . . . . Part Schematic 1 | . 1 . . . . . . . . . . Robot Analysis 1 | . . . . . 1 . . . . . . Branch Access Points 2 | . . . . . . 1 . . . 1 . Terminal Index 1 | . 1 . . . . . . . . . . Alert Level 1 | . . . . . 1 . . . . . . Unreport Threat 1 | . . . . . 1 . . . . . . Fabricator Hacks . | . . . . . . . . . . . . Repair Station Hacks 9 | . 4 . . . 3 2 . . . . . Scan Component 5 | . 2 . . . 2 1 . . . . . Repair 4 | . 2 . . . 1 1 . . . . . Recycling Unit Hacks 1 | . 1 . . . . . . . . . . Report Inventory 1 | . 1 . . . . . . . . . . Scanalyzer . | . . . . . . . . . . . . Garrison Access Hacks 2 | . . . . . . 1 . 1 . . . Unlock Access 2 | . . . . . . 1 . 1 . . . Unauthorized Hacks 6 | . 2 . . . 3 1 . . . . . Terminals 5 | . 1 . . . 3 1 . . . . . Assimilate 1 | . . . . . 1 . . . . . . Botnet 2 | . . . . . 1 1 . . . . . Operators 2 | . 1 . . . 1 . . . . . . Fabricators . | . . . . . . . . . . . . Repair Stations . | . . . . . . . . . . . . Recycling Units 1 | . 1 . . . . . . . . . . Tunnel 1 | . 1 . . . . . . . . . . Scanalyzers . | . . . . . . . . . . . . Garrison Access . | . . . . . . . . . . . . Data Cores Recovered 1 | . . . . . . . . 1 . . . Used . | . . . . . . . . . . . . Hacking Detections 19 | . 4 . . . 5 7 1 1 . 1 . Full Trace Events 4 | . 1 . . . 2 1 . . . . . Feedback Events 1 | . 1 . . . . . . . . . . Corruption 1 | . 1 . . . . . . . . . . Feedback Blocked . | . . . . . . . . . . . . Robot Schematics Acquired . | . . . . . . . . . . . . Robots Built . | . . . . . . . . . . . . Authchips . | . . . . . . . . . . . . Time . | . . . . . . . . . . . . Total Robot Build Rating . | . . . . . . . . . . . . Part Schematics Acquired 1 | . 1 . . . . . . . . . . Parts Built . | . . . . . . . . . . . . Authchips . | . . . . . . . . . . . . Time . | . . . . . . . . . . . . Total Part Build Rating . | . . . . . . . . . . . . Parts Repaired 4 | . 2 . . . 1 1 . . . . . Time 104 | . 52 . . . 26 26 . . . . . Parts Recycled . | . . . . . . . . . . . . Recycled Matter . | . . . . . . . . . . . . Retrieved Matter . | . . . . . . . . . . . . Retrieved Components . | . . . . . . . . . . . . Parts Scanalyzed . | . . . . . . . . . . . . Part Schematics Acquired . | . . . . . . . . . . . . Parts Damaged . | . . . . . . . . . . . . Bothacking | -11 -10 -10 -10 -9 -8 -7 -7 -7 -7 -7 -7 ------------ Run | Yrd Mat Min Exi Min Mat Fac Gar Fac Gar Fac Low Used RIF Installer . | . . . . . . . . . . . . Robots Hacked . | . . . . . . . . . . . . Non-combat . | . . . . . . . . . . . . Combat . | . . . . . . . . . . . . Robot Hacks Applied . | . . . . . . . . . . . . Relay Couplers Released . | . . . . . . . . . . . . Fabnet Peak Effective % . | . . . . . . . . . . . . Robots Rewired . | . . . . . . . . . . . . Allies Hacked . | . . . . . . . . . . . . Hacks Repelled . | . . . . . . . . . . . . Allies | -11 -10 -10 -10 -9 -8 -7 -7 -7 -7 -7 -7 -------- Run | Yrd Mat Min Exi Min Mat Fac Gar Fac Gar Fac Low Total Allies 5 | . . 3 . . . . . . 2 . . Largest Group 3 | . . 3 3 2 . . . . 2 . . Highest-Rated Group 124 | . . 40 40 24 . . . . 124 . . Highest-Rated Ally 62 | . . 16 16 16 . . . . 62 . . Total Orders . | . . . . . . . . . . . . Ally Attacks 31 | . . . . 19 . . . . 12 . . Total Damage 877 | . . . . 217 . . . . 660 . . Kills 6 | . . . . 3 . . . . 3 . . Allies Corrupted . | . . . . . . . . . . . . Allies Melted 1 | . . . . 1 . . . . . . . Intel | -11 -10 -10 -10 -9 -8 -7 -7 -7 -7 -7 -7 ------- Run | Yrd Mat Min Exi Min Mat Fac Gar Fac Gar Fac Low Robot Analysis Total 1 | . . . . . 1 . . . . . . Derelict Logs Recovered 1 | . . 1 . . . . . . . . . Drone Launches . | . . . . . . . . . . . . Drone Recoveries . | . . . . . . . . . . . . Exploration | -11 -10 -10 -10 -9 -8 -7 -7 -7 -7 -7 -7 ------------- Run | Yrd Mat Min Exi Min Mat Fac Gar Fac Gar Fac Low Turns Passed 15182 | 248 1424 644 298 305 3387 3012 2123 2246 1067 427 1 Spaces Moved 4643 | 27 701 353 189 142 1013 780 427 500 339 172 . Core . | . . . . . . . . . . . . Treads 2465 | . . . . . 247 780 427 500 339 172 . Legs 95 | 27 68 . . . . . . . . . . Wheels 2083 | . 633 353 189 142 766 . . . . . . Hover . | . . . . . . . . . . . . Flight . | . . . . . . . . . . . . Fastest Speed 115 | 120 120 155 155 115 115 160 400 325 240 240 . Average Speed 254 | 120 144 155 155 133 213 327 403 404 247 240 . Slowest Speed 405 | 120 155 155 155 155 320 400 405 405 405 240 . Overloaded Moves . | . . . . . . . . . . . . Propulsion Burnouts . | . . . . . . . . . . . . Robots Hopped . | . . . . . . . . . . . . Cave-ins Triggered . | . . . . . . . . . . . . Exploration Rate (%) 36 | 3 96 51 56 25 59 23 59 18 35 7 2 Regions Visited 11 Branch Regions 4 Pre-discovered Areas 4 | . 1 1 1 1 . . . . . . . Known Exits Taken 3 | . . . . . . 1 . 1 . 1 . Unknown Exits Taken 6 | 1 1 1 1 1 1 . . . . . . Scrap Searched 3 | . . 2 . 1 . . . . . . . Spaces Dug 102 | . 4 . . . 23 4 . . 71 . . Terrain Destroyed 177 | . 4 . . 14 23 4 . 33 99 . . Melee 9 | . . . . . 9 . . . . . . Projectile 9 | . 4 . . . . 4 . 1 . . . AOE 159 | . . . . 14 14 . . 32 99 . . Terrain Rammed . | . . . . . . . . . . . . Walls Destroyed . | . . . . . . . . . . . . Machines Disabled . | . . . . . . . . . . . . Actions | -11 -10 -10 -10 -9 -8 -7 -7 -7 -7 -7 -7 --------- Run | Yrd Mat Min Exi Min Mat Fac Gar Fac Gar Fac Low Total 7120 | 194 1017 420 195 240 1944 1092 660 694 485 178 1 Wait 1610 | 138 233 39 3 77 662 130 106 163 59 . . Move 4632 | 26 700 352 188 141 1012 779 426 499 338 171 . Hop . | . . . . . . . . . . . . Pick Up 111 | 2 14 8 2 2 31 33 7 4 8 . . Fast Attach 44 | 1 1 . . . 17 15 2 2 6 . . Attach 43 | . 1 . . 5 16 9 6 3 2 1 . Detach 14 | . . . . 1 3 6 2 1 1 . . Swap 66 | 1 14 1 . 3 20 18 2 3 4 . . Drop 84 | 2 9 2 2 1 24 22 4 3 15 . . Fire 489 | 24 45 18 . 9 144 79 99 16 48 6 1 Melee 15 | . . . . 1 14 . . . . . . Ram 1 | . . . . . 1 . . . . . . Kick . | . . . . . . . . . . . . Crush 1 | . . . . . . 1 . . . . . Escape Stasis 10 | . . . . . . . 6 . 4 . . Rewire . | . . . . . . . . . . . . Trap . | . . . . . . . . . . . . Miscellaneous . | . . . . . . . . . . . . Route ------- -11/Scrapyard -10/Materials (discovered 5 exits: [*Mat x3] / [*Min x2]) -10/Mines -10/Exiles -9/Mines -8/Materials (discovered 2 exits: *Fac x2) -7/Factory (discovered 6 exits: [*Fac] / *Sto x2 / Low x2 / Gar) -7/Garrison (discovered 2 exits: *Fac x2) -7/Factory (discovered 3 exits: *Sto / *Low / Gar) -7/Garrison -7/Factory (discovered 4 exits: Sto x2 / *Low x2) -7/Lower Caves History --------- Turn | Location | Event 28 | -11/Scrapyard | Discovered new exit (range 3) 249 | -11/Scrapyard | Entered Materials 318 | -10/Materials | Build established: Mutant 422 | -10/Materials | Discovered new exit (range 15) 493 | -10/Materials | Discovered new exit (range 16) 702 | -10/Materials | Discovered new exit (range 12) 849 | -10/Materials | Derelicts attacked the area 1265 | -10/Materials | Discovered new exit (range 9) 1390 | -10/Materials | Discovered new exit (range 16) 1549 | -10/Materials | Repaired Lgt. Treads 1577 | -10/Materials | Repaired Assault Rifle 1673 | -10/Materials | Entered Mines 2040 | -10/Mines | Core integrity fell below 50% 2137 | -10/Mines | Learned location of Mines (-9) 2190 | -10/Mines | Assisted by bots powering up and referring to "LRC-V3" 2305 | -10/Mines | Deemed a non-threat by the Exiles lab entrance 2305 | -10/Mines | Discovered new exit (range 5) 2317 | -10/Mines | Entered Exiles 2317 | -10/Exiles | Accompanied by 3 allies 2363 | -10/Exiles | Met 8R-AWN 2385 | -10/Exiles | Met EX-HEX 2472 | -10/Exiles | Met EX-DEC 2515 | -10/Exiles | Learned location of Zion (-6) 2596 | -10/Exiles | Discovered new exit (range 14) 2615 | -10/Exiles | Entered Mines 2615 | -9/Mines | Accompanied by 3 allies 2616 | -9/Mines | Assembled infested the area 2686 | -9/Mines | Lost 3 allies 2707 | -9/Mines | System corruption reached 10% 2846 | -9/Mines | Core integrity fell below 20% 2874 | -9/Mines | Lost 3 parts (1p1n1u) 2887 | -9/Mines | Discovered new exit (range 11) 2893 | -9/Mines | Learned location of Storage (-7) 2920 | -9/Mines | Entered Materials 2920 | -8/Materials | Evolved 4 slots: Utility x4 3051 | -8/Materials | Lost 4 parts (1p1n1u1w) 3284 | -8/Materials | Build established: Scavenger-Mutant 3662 | -8/Materials | Discovered new exit (range 9) 4780 | -8/Materials | Core integrity fell below 50% 4807 | -8/Materials | Lost 3 parts (1n2u) 4873 | -8/Materials | Repaired Seismic Detector 4894 | -8/Materials | Discovered new exit (range 15) 5391 | -8/Materials | Core integrity fell below 20% 6307 | -8/Materials | Entered Factory 6307 | -7/Factory | Evolved 2 slots: Utility x2 6585 | -7/Factory | Discovered new exit (range 9) 6653 | -7/Factory | Identified exit to Garrison 6695 | -7/Factory | Build established: Scavenger-Skirmisher 6867 | -7/Factory | Discovered new exit (range 16) 6890 | -7/Factory | Identified exit to Storage 6890 | -7/Factory | Identified exit to Lower Caves 7146 | -7/Factory | Build established: Scavenger-Mutant 7843 | -7/Factory | Repaired Huge Storage Unit 8076 | -7/Factory | Cargo convoy interrupted 9012 | -7/Factory | Core integrity fell below 50% 9030 | -7/Factory | Lost 4 parts (1p1n2u) 9319 | -7/Factory | Entered Garrison 9359 | -7/Garrison | Triggered checkpoint 9925 | -7/Garrison | Core integrity fell below 20% 10013 | -7/Garrison | Triggered checkpoint 10426 | -7/Garrison | Discovered new exit (range 11) 10816 | -7/Garrison | Triggered checkpoint 10977 | -7/Garrison | Triggered checkpoint 11290 | -7/Garrison | Build established: Mutant 11373 | -7/Garrison | Discovered new exit (range 13) 11442 | -7/Garrison | Entered Factory 12100 | -7/Factory | Discovered exit to Lower Caves (range 10) 12819 | -7/Factory | Discovered exit to Storage (range 17) 13530 | -7/Factory | System corruption reached 10% 13676 | -7/Factory | Identified exit to Garrison 13688 | -7/Factory | Entered Garrison 14219 | -7/Garrison | Triggered checkpoint 14230 | -7/Garrison | Triggered checkpoint 14276 | -7/Garrison | Destroyed 7 combat bots 14285 | -7/Garrison | Lost 4 parts (4u) 14521 | -7/Garrison | Found embedded Infiltrators 14532 | -7/Garrison | Triggered checkpoint 14656 | -7/Garrison | Triggered checkpoint 14657 | -7/Garrison | Build established: Scavenger-Mutant 14729 | -7/Garrison | Discovered new exit (range 12) 14755 | -7/Garrison | Entered Factory 15182 | -7/Factory | Entered Lower Caves 15183 | -7/Lower Caves | Destroyed by Y-54 Guardian with Gatling Laser Last Messages --------------- 15112_ U-05 Engineer builds a Wall. 15116_ U-05 Engineer lays Concrete. 15119_ Neutrino Reactor explodes. 15119_ U-05 Engineer builds a Wall. 15120_ System corrupted: Imp. Heavy Machine Gun jammed. 15122_ Neutrino Reactor explodes. 15123_ U-05 Engineer lays Concrete. 15126_ U-05 Engineer builds a Door. 15130_ Neutrino Reactor explodes. 15130_ Door malfunctions. 15130_ U-05 Engineer lays Concrete. 15131_ Neutrino Reactor explodes. 15131_ U-05 Engineer lays Concrete. 15134_ U-05 Engineer builds a Wall. 15138_ U-05 Engineer lays Concrete. 15165_ System corrupted: Matter fused (-9). 15165_ U-05 Engineer lays Concrete. 15181_ System corrupted: Substantial component data lost. LOCATION=LOWER CAVES GOAL=ESCAPE Map ----- +----------------------------------------------------+ | ?????????????????????????????????????????????????? | | ?????????????????????????????????????????????????? | | ?????????????????????????????????????????????????? | | ?????????????????????????????????????????????????? | | ?????????????????????????????????????????????????? | | ?????????????????????????????????????????????????? | | ?????????????????????????????????????????????????? | | ?????????????????????????????????????????????????? | | ?????????????????????????????????????????????????? | | ?????????????????????????????????????????????????? | | ?????????????????????????????????????????????????? | | ?????????????????????????????????????????????????? | | ?????????????????????????????????????????????????? | | ?????????????????????????????????????????????????? | | ?????????????????????????????????????????????????? | | ?????????????????????????????????????????????????? | | ????????????????????????????##???????????????????? | | ???????????????????????????? ##??????????????????? | | ???????????????????????????? ???????????????????? | | ??????????????????????????? #???????????????????? | | ??????????????????????????? #???????????????????? | | ??????????????????????##### #???????????????????? | | ?????????????????????## ##??????????????????? | | ????????????????????## #??????????????????? | | ????????????????????# ####???????????????? | | ????????????????????# @ #???????????????? | | ????????????????????## #???????????????? | | ?????????????????????## #???????????????? | | ??????????????????????# Y #???????????????? | | ?????????????????????? #???????????????? | | ????????????????????? #???????????????? | | ????????????????????###### #???????????????? | | ??????????????????????????## ###???????????????? | | ????????????????????????????# ##?????????????????? | | ?????????????????????????????##??????????????????? | | ?????????????????????????????????????????????????? | | ?????????????????????????????????????????????????? | | ?????????????????????????????????????????????????? | | ?????????????????????????????????????????????????? | | ?????????????????????????????????????????????????? | | ?????????????????????????????????????????????????? | | ?????????????????????????????????????????????????? | | ?????????????????????????????????????????????????? | | ?????????????????????????????????????????????????? | | ?????????????????????????????????????????????????? | | ?????????????????????????????????????????????????? | | ?????????????????????????????????????????????????? | | ?????????????????????????????????????????????????? | | ?????????????????????????????????????????????????? | | ?????????????????????????????????????????????????? | +----------------------------------------------------+ Best States ------------- Heat Dissipation 92 Energy Generation 19 Energy Capacity 715 Matter Stores 300 Matter Capacity 300 Sight Range 23 Terrain Scan Range 16 Terrain Scan Density 210 Jamming Range 12 EM Shielding 2 Armor Coverage 1650 Resistance: KI 30 Resistance: EM 15 Evasion (%) 55 Targeting Accuracy 8 Core Analysis 6 Recoil Reduction 2 Particle Charging 15 Item Schematics ----------------- Huge Storage Unit | -10/Materials | Hacked Robot Schematics ------------------ None Fabricated ------------ Nothing Alien Tech Used ----------------- None Achievements -------------- None Challenges ------------ None Game ------ Seed SiegeRecoilTerrabomb Manual? 0 Play Time 01:18:21 Cumulative 158.2 hours Start 2024.06.26 @ 21:13:18 End 2024.06.26 @ 22:33:12 Sessions 1 Manual Loads 0 Difficulty Rogue Special Mode None Game No. 100 Rogue 100 Adventurer 0 Explorer 0 Win Type - Total 2 Types 1/0/0/1/0/0/0/0/0 Lore% 67 Gallery% 60 Achievement% 53 Wizard Run 0 Options --------- Layout 0 ASCII 0 Keyboard 0 Movement Mouse Keybinds 0 Fullscreen 1 Font 18/SmallcapsGlow Map View 76x50 Zoom Use 0% Tactical HUD 1 Map Filters NONE Filters NONE Steam X RUN: b3932748-7668-4e6b-a852-efe34d85af5f